Cogmind - Beta 14 @@@ ROGUE MODE // 2025.04.25 @ 20:30:01 Player: Centeno Result: Destroyed by G-34 Mercenary with Small Laser Performance ------------- Evolutions (0) 0 Regions Visited (1) 200 Robots Destroyed (20) 100 Value Destroyed (507) 507 Prototype IDs (6) 120 Alien Tech Used (0) 0 Bonus (0) 0 TOTAL SCORE: 927 Bonus ------- None Cogmind --------- Core Integrity 0/250 Matter 260/300 Energy 277/280 System Corruption 0% Temperature Cool (88) Movement Flying (272) Ox3 Location -10/Materials Parts ------- > --- POWER (1) -------- Heavy Ion Engine > --- PROPULSION (2) --- VTOL Module VTOL Module > --- UTILITY (2) ------ Large Storage Unit Seismic Detector > --- WEAPON (2) ------- Small Laser Small Laser > --- INVENTORY (15) --- Heavy Ion Engine VTOL Module VTOL Module Heat Sink Seismic Detector Peak State ------------ > --- POWER ------------ Heavy Ion Engine > --- PROPULSION ------- VTOL Module VTOL Module > --- UTILITY ---------- Large Storage Unit Seismic Detector > --- WEAPON ----------- Small Laser > --- INVENTORY -------- Heavy Ion Engine VTOL Module VTOL Module Heat Sink Seismic Detector Small Laser [Rating: 11] Favorites ----------- Power Heavy Ion Engine Engine Heavy Ion Engine Propulsion Light Treads Treads Light Treads Flight Unit VTOL Module Utility Seismic Detector Device Seismic Detector Storage Large Storage Unit Weapon Light Assault Rifle Energy Gun Small Laser Ballistic Gun Light Assault Rifle Build | -11 -10 ------- Run | Yrd Mat Slots Evolved . | . . Power . | . . Propulsion . | . . Utility . | . . Weapon . | . . Parts Attached 14 | 7 7 Power 2 | 1 1 Engine 2 | 1 1 Core . | . . Reactor . | . . Propulsion 4 | 2 2 Treads 2 | 2 . Leg . | . . Wheel . | . . Hover . | . . Flight 2 | . 2 Utility 3 | 2 1 Device 1 | 1 . Storage 2 | 1 1 Processor . | . . Hackware . | . . Protection . | . . Artifact . | . . Weapon 5 | 2 3 Energy Gun 2 | . 2 Energy Cannon . | . . Ballistic Gun 3 | 2 1 Ballistic Cannon . | . . Launcher . | . . Special Weapon . | . . Impact Weapon . | . . Slashing Weapon . | . . Piercing Weapon . | . . Special Melee Weapon . | . . Unidentified Prototypes 1 | . 1 Parts Lost 5 | . 5 Power . | . . Propulsion 2 | . 2 Utility . | . . Weapon 3 | . 3 Highest Loss Streak 3 | . 3 To Critical Strikes . | . . Average Slot Usage (%) 96 | . 96 Engine 14 | . 14 Treads 24 | . 24 Device 14 | . 14 Storage 14 | . 14 Ballistic Gun 27 | . 27 Peak Build Rating 11 | 7 11 Average Rating 7 | 4 9 On Entrance 3 | . 7 Naked Turns . | . . Heaviest Build 32 | 14 32 Greatest Support 40 | 40 40 Greatest Overweight (x) 10 | 4 10 Average Overweight (x) 1 | 2 . Largest Inventory Capacity 15 | 8 15 Average Capacity 12 | 7 14 Most Carried 9 | 5 9 Average Carried 6 | 3 7 Final Capacity 15 | 8 15 Final Carried 5 | 3 5 Class Distribution -------------------- 100% | Mutant Dominant Class ---------------- Mutant | -10/Materials Resources | -11 -10 ----------- Run | Yrd Mat Matter Collected 523 | 338 185 Remotely . | . . Salvage Created 672 | 162 510 Parts 45 | 13 32 Haulers Intercepted . | . . Recyclers Shooed . | . . Parts Field Recycled . | . . Retrieved Matter . | . . Parts Self-Destructed . | . . Prevented . | . . Kills | -11 -10 ------- Run | Yrd Mat Combat Hostiles Destroyed 12 | . 12 Guns 12 | . 12 Classes Destroyed 5 | 2 3 Tunneler 5 | 5 . Recycler 1 | 1 . Operator 1 | . 1 Watcher 1 | . 1 Grunt 12 | . 12 Best Kill Streak 3 | 2 3 Combat Bots Only 3 | . 3 Max Kills in Single Turn 1 | 1 1 Gunslinging . | . . Exploded . | . . Melee . | . . Uniques/NPCs Destroyed . | . . Combat | -11 -10 -------- Run | Yrd Mat Hostile Shots Fired 110 | . 110 Missed 29 | . 29 Damage Taken 996 | . 996 Core 260 | . 260 Absorbed by Shields . | . . Core Remaining (%) 100 | 100 . Volleys Fired 82 | 17 65 Largest 2 | 2 2 Hottest 80 | 40 80 Shots Fired 160 | 34 126 Gun 160 | 34 126 Cannon . | . . Launcher . | . . Special . | . . Kinetic 156 | 34 122 Thermal 4 | . 4 Explosive . | . . Electromagnetic . | . . Robot Hit Streak 13 | 6 13 Robot Miss Streak 4 | 4 3 Penetration Max . | . . Secondary Targets 3 | . 3 Max Gunslinging Chain 1 | . 1 Shots Hit Robots 114 | 21 93 Core Hits 44 | 9 35 Critical Kills . | . . Critical Parts Destroyed . | . . Critical Strikes . | . . Melee Attacks . | . . Impact . | . . Slashing . | . . Piercing . | . . Sneak Attacks . | . . Combat Hostiles . | . . Follow-up Attacks . | . . Damage Inflicted 1083 | 231 852 Guns 1083 | 231 852 Cannons . | . . Explosions . | . . Melee . | . . Ramming . | . . Kinetic 1060 | 231 829 Thermal 23 | . 23 Explosive . | . . Electromagnetic . | . . Impact . | . . Slashing . | . . Piercing . | . . Highest Corruption . | . . Average Corruption . | . . Corruption Purged . | . . Corruption Blocked . | . . Overload Shots . | . . Overflow Damage . | . . Projectiles . | . . Explosions . | . . Melee . | . . Knockbacks . | . . Impact . | . . Kinetic . | . . Secondary . | . . Self-Inflicted Damage . | . . Shots . | . . Rammed . | . . Targets Rammed . | . . Kicked . | . . Crushed . | . . Highest Temperature 82 | . 82 Average Temperature 8 | . 8 Received Heat Transfer 579 | . 579 Siege Activations . | . . Robots Corrupted . | . . Combat Hostiles . | . . Parts Fried . | . . Impact Corruptions . | . . Robots Melted . | . . Combat Hostiles . | . . Parts Melted . | . . Heat Transferred 50 | . 50 Parts Sabotaged . | . . Parts Stolen . | . . Parts Stripped . | . . Power Chain Reactions . | . . Alert | -11 -10 ------- Run | Yrd Mat Peak Influence 217 | 30 217 Initial . | . . Average 49 | 11 68 Maximum Alert Level 1 | . 1 Low Security (%) 94 | 100 91 Level 1 5 | . 8 Level 2 . | . . Level 3 . | . . Level 4 . | . . Level 5 . | . . High Security . | . . Max Security . | . . Squads Dispatched 3 | . 3 Investigation 1 | . 1 Extermination . | . . Reinforcement 2 | . 2 Assault . | . . Garrison . | . . Intercept . | . . Searches Triggered . | . . Construction Impeded . | . . Haulers Reinforced . | . . Active Scanning Responses . | . . Cargo Convoy Interrupts . | . . Stealth | -11 -10 --------- Run | Yrd Mat Distress Signals 1 | . 1 Communications Jammed . | . . Distress Signals . | . . Times Spotted 23 | . 23 Peak Tracking Total 4 | . 4 Tactical Retreats 1 | . 1 Traps | -11 -10 ------- Run | Yrd Mat Traps Triggered 1 | . 1 Indirectly . | . . Trap Hack Attempts . | . . Triggered . | . . Disarmed . | . . Reprogrammed . | . . Reused . | . . Traps Extracted . | . . Installed . | . . Triggered . | . . Machines | -11 -10 ---------- Run | Yrd Mat Machines Disabled . | . . Max in Single Turn . | . . Machines Repaired . | . . Machines Dismantled . | . . Machines Sabotaged . | . . Overloaded Fab Kills . | . . Hacking | -11 -10 --------- Run | Yrd Mat Machines Accessed 4 | . 4 Terminals 4 | . 4 Fabricators . | . . Repair Stations . | . . Recycling Units . | . . Scanalyzers . | . . Garrison Access . | . . Total Hacks 15 | . 15 Successful 8 | . 8 Failed 6 | . 6 Catastrophic 2 | . 2 Database Lockouts 1 | . 1 Manual 8 | . 8 Terminals 15 | . 15 Fabricators . | . . Repair Stations . | . . Recycling Units . | . . Scanalyzers . | . . Garrison Access . | . . Terminal Hacks 8 | . 8 Robot Analysis 1 | . 1 Prototype ID Bank 4 | . 4 Alert Level 1 | . 1 Locate Traps 2 | . 2 Fabricator Hacks . | . . Repair Station Hacks . | . . Recycling Unit Hacks . | . . Scanalyzer . | . . Garrison Access Hacks . | . . Unauthorized Hacks . | . . Terminals . | . . Fabricators . | . . Repair Stations . | . . Recycling Units . | . . Scanalyzers . | . . Garrison Access . | . . Data Cores Recovered . | . . Used . | . . Hacking Detections 4 | . 4 Full Trace Events . | . . Feedback Events . | . . Feedback Blocked . | . . Robot Schematics Acquired . | . . Robots Built . | . . Authchips . | . . Time . | . . Total Robot Build Rating . | . . Part Schematics Acquired . | . . Parts Built . | . . Authchips . | . . Time . | . . Total Part Build Rating . | . . Parts Repaired . | . . Time . | . . Parts Recycled . | . . Recycled Matter . | . . Retrieved Matter . | . . Retrieved Components . | . . Parts Scanalyzed . | . . Part Schematics Acquired . | . . Parts Damaged . | . . Bothacking | -11 -10 ------------ Run | Yrd Mat Used RIF Installer . | . . Robots Hacked . | . . Non-combat . | . . Combat . | . . Robot Hacks Applied . | . . Relay Couplers Released . | . . Fabnet Peak Effective % . | . . Robots Rewired . | . . Allies Hacked . | . . Hacks Repelled . | . . Allies | -11 -10 -------- Run | Yrd Mat Total Allies . | . . Largest Group . | . . Highest-Rated Group . | . . Highest-Rated Ally . | . . Total Orders . | . . Ally Attacks . | . . Total Damage . | . . Kills . | . . Allies Corrupted . | . . Allies Melted . | . . Intel | -11 -10 ------- Run | Yrd Mat Robot Analysis Total 1 | . 1 Derelict Logs Recovered . | . . Drone Launches . | . . Drone Recoveries . | . . Exploration | -11 -10 ------------- Run | Yrd Mat Turns Passed 1235 | 403 832 Spaces Moved 484 | 155 329 Core 127 | 124 3 Treads 357 | 31 326 Legs . | . . Wheels . | . . Hover . | . . Flight . | . . Fastest Speed 50 | 50 160 Average Speed 190 | 217 177 Slowest Speed 550 | 250 550 Overloaded Moves . | . . Propulsion Burnouts . | . . Robots Hopped . | . . Cave-ins Triggered . | . . Exploration Rate (%) 22 | 11 34 Regions Visited 1 Branch Regions . Pre-discovered Areas . | . . Known Exits Taken . | . . Unknown Exits Taken 1 | 1 . Scrap Searched . | . . Spaces Dug . | . . Terrain Destroyed . | . . Melee . | . . Projectile . | . . AOE . | . . Terrain Rammed . | . . Walls Destroyed . | . . Machines Disabled . | . . Actions | -11 -10 --------- Run | Yrd Mat Total 662 | 191 471 Wait 60 | 3 57 Move 483 | 154 329 Hop . | . . Pick Up 20 | 10 10 Fast Attach . | . . Attach 12 | 7 5 Detach . | . . Swap 2 | . 2 Drop 3 | . 3 Fire 82 | 17 65 Melee . | . . Ram . | . . Kick . | . . Crush . | . . Escape Stasis . | . . Rewire . | . . Trap . | . . Miscellaneous . | . . Route ------- -11/Scrapyard -10/Materials (discovered 2 exits: [*Mat] / [*Min]) History --------- Turn | Location | Event 13 | -11/Scrapyard | Discovered new exit (range 15) 404 | -11/Scrapyard | Entered Materials 405 | -10/Materials | Build established: Mutant 767 | -10/Materials | Discovered new exit (range 10) 897 | -10/Materials | Central database locked down 897 | -10/Materials | Discovered new exit (range 5) 1219 | -10/Materials | Core integrity fell below 50% 1228 | -10/Materials | Core integrity fell below 20% 1236 | -10/Materials | Destroyed by G-34 Mercenary with Small Laser Last Messages --------------- 01187_ K-01 Serf cleans the Terminal. 01197_ A-02 Transporter sends out distress signal. 01200_ K-01 Serf cleans the Terminal. 01211_ Lgt. Treads destroyed. 01217_ T-07 Excavator destroyed. 01219_ R-06 Scavenger collects Lgt. Ion Engine. 01219_ K-01 Serf cleans the Terminal. 01221_ Lgt. Assault Rifle destroyed. 01223_ K-01 Serf collects debris. 01226_ Lgt. Assault Rifle destroyed. 01229_ K-01 Serf collects debris. 01230_ Critical hit (Burn: +37). 01232_ R-06 Scavenger collects Wheel. 01232_ G-34 Mercenary destroyed. 01232_ K-01 Serf collects debris. 01233_ R-06 Scavenger collects Seismic Detector. 01235_ K-01 Serf collects debris. 01236_ R-06 Scavenger collects Imp. Terrain Scanner. Map ----- +----------------------------------------------------+ | ???????????#####???????????????????????????? | | "" #??????# #########???????????????????? | | """ #??????# T ## #???????????????????? | | """ #??????# ## T #???????????????????? | | """ ######## ## #???????????????????? | | "" ##!! !## ## #???????????????????? | | #! !# ## #???????????????????? | | # # %=##% #???????????????????? | | ##### ##+######+####??????????????????? | | % #??????????????????? | | #??????????????????? | | #??????????????????? | | #################### #??????????????????? | | #??????????????????# #??????????????????? | | =#??????????????????# #??????????????????? | | =#??????????????????# #??????????????????? | | ##???????????######## #????????????####### | | ?????????????# # #????????????# # | | ?????????????# """# #????????????# # | | ?????????????# """# #????????##### # | | ?????????????# """# #????????# # """ # | | ?????????????# """# #????????# < # """ # | | ?????????????# % # ###????###^^^# """ # | | ?????###########/#### #T######T# %+ # | | ?????# %%% g # """ # | | ?????# % % @ gk # """ # | | ?????# =%rr # """ # | | ###+## ######################### # # | | #########???????????????# # # | | # T #???????????????# ####### | | +% !! #???????????????#% #?????? | | # !! !#???????????????# #?????? | | #### #########???????????????# #?????? | | #" #??????????????????????# #?????? | | ?#"" % #??????????????????????# #?????? | | ??#!! #??????????????????????# #?????? | | ??#"" < #??????????????????????# #?????? | | ??#!! #??????????????????????# #?????? | | ??#"" #?????????????????????? #?????? | | ??#" #?????????????????????? #?????? | | ??#### ##?????????????????????? #?????? | | ????? #??????????????????????## #?????? | | ???? +???????????????????????# ??????? | | ???? #???????????????????????# ??????? | | ??? #???????????????????????? ??????? | | ?? #####?????????????????????????????????? | | ?? ??????????????????????????????????????? | | ?" ??????????????????????????????????????? | | ? ??????????????????????????????????????? | | ? ???????????????????????????????????????? | +----------------------------------------------------+ Best States ------------- Heat Dissipation 25 Energy Generation 14 Energy Capacity 280 Matter Stores 300 Matter Capacity 300 Sight Range 16 Terrain Scan Density 10 Evasion (%) 50 Recoil Reduction 2 Item Schematics ----------------- None Robot Schematics ------------------ None Fabricated ------------ Nothing Alien Tech Used ----------------- None Achievements -------------- None Challenges ------------ None Game ------ Seed ArchitectTowerShifter Manual? 0 Play Time 00:12:31 Cumulative 2.1 hours Start 2025.04.25 @ 17:46:51 End 2025.04.25 @ 20:30:01 Sessions 2 Manual Loads 0 Difficulty Rogue Special Mode None Game No. 2 Rogue 2 Adventurer 0 Explorer 0 Win Type - Total 0 Types 0/0/0/0/0/0/0/0/0 Lore% 1 Gallery% 6 Achievement% 9 Wizard Run 0 Options --------- Layout 1 ASCII 0 Keyboard 0 Movement Mouse Keybinds 0 Fullscreen 1 Font 24/Smallcaps Map View 50x40 Zoom Use 4% Tactical HUD 1 Map Filters NONE Filters NONE Steam 1 RUN: 5b0813ef-1745-459a-b31c-18df055c2c45